bitfinex-derivatives/quotes_SOLF0:USTF0_20241012
["timestamp","ask_amount","ask_price","bid_price","bid_amount"]
[1728729484541,8.56502,146.27,146.24,4.92777623]
[1728729484743,8.56502,146.27,146.23,3.42]
[1728729485049,8.56502,146.27,146.24,8.37977066]
[1728729485249,8.56502,146.27,146.24,3.45107645]
[1728729485550,3.4194,146.26,146.25,4.92977578]
[1728729487552,3.4194,146.26,146.24,3.45107645]
[1728729487853,3.4194,146.26,146.25,4.93059111]
[1728729488253,3.4194,146.26,146.25,8.42646897]
[1728729490749,11.8594,146.26,146.25,8.42646897]
[1728729491152,11.8594,146.26,146.25,3.49587786]
[1728729491541,11.8594,146.26,146.22,3.4202]
[1728729491542,3.4196,146.25,146.22,3.4202]
[1728729491942,3.4196,146.25,146.22,6.75635749]
[1728729492252,3.4196,146.25,146.23,4.93256514]
[1728729492450,3.4196,146.25,146.24,4.93256514]
[1728729494156,0.12518,146.28,146.24,4.93256514]
[1728729494352,0.12518,146.28,146.25,4.93256514]
[1728729494554,0.12518,146.28,146.26,4.93256514]
[1728729494751,0.12518,146.28,146.27,4.93256514]
[1728729495351,3.54408,146.28,146.27,4.93256514]
[1728729495547,3.54408,146.28,146.27,8.35649765]
[1728729496555,3.54408,146.28,146.27,4.93256514]
[1728729497056,3.54408,146.28,146.27,8.26861683]
[1728729497750,3.4185,146.3,146.27,11.68771683]
[1728729497958,8.44,146.31,146.28,4.93256514]
[1728729498153,8.44,146.31,146.27,3.33605169]
[1728729498359,3.4187,146.29,146.26,11.8593]
[1728729498661,3.4187,146.29,146.27,4.93115674]
[1728729498957,3.4187,146.29,146.28,4.93115674]
[1728729500764,0.12502,146.33,146.28,4.93115674]
[1728729500959,0.12502,146.33,146.29,4.93115674]
[1728729501157,8.44,146.32,146.26,4.86629148]
[1728729501360,8.44,146.31,146.27,4.93104742]
[1728729501661,8.44,146.31,146.28,4.93104742]
[1728729501859,8.44,146.31,146.29,4.93104742]
[1728729502167,8.44,146.31,146.26,13.30629148]
[1728729502364,3.4184,146.3,146.27,4.93139287]
[1728729502569,3.4184,146.3,146.27,3.419]
[1728729502771,3.4184,146.3,146.28,4.93139287]
[1728729503067,0.12502,146.33,146.29,4.93139287]
[1728729503272,8.56502,146.33,146.29,8.44]
[1728729503465,8.56502,146.33,146.3,4.93073271]
[1728729503667,8.56502,146.33,146.29,8.44]
[1728729503973,3.418,146.32,146.3,3.41891132]
[1728729505774,3.4167,146.38,146.34,3.4174]
[1728729505969,8.44,146.4,146.35,8.44]
[1728729506169,3.37923884,146.44,146.35,8.44]
[1728729506364,8.44,146.4,146.35,8.44]
[1728729506569,3.54152,146.39,146.36,4.92035003]
[1728729506875,3.54152,146.39,146.35,8.44]
[1728729507069,3.54152,146.39,146.36,4.92067437]
[1728729507269,3.54152,146.39,146.35,8.44]
[1728729507466,3.54152,146.39,146.35,11.8573]
[1728729507773,0.12502,146.39,146.35,11.8573]
[1728729507976,0.12502,146.39,146.36,4.91660223]
[1728729508174,0.12502,146.39,146.35,8.44]
[1728729508475,0.12502,146.39,146.37,8.44]
[1728729508880,0.12502,146.39,146.32,6.2102954]
[1728729509077,0.12502,146.39,146.36,8.44]
[1728729509473,0.12502,146.39,146.36,11.8568]
[1728729510379,0.12502,146.39,146.36,8.44]
[1728729510582,0.12502,146.39,146.37,3.4168]
[1728729510771,3.4156,146.43,146.39,8.44]
[1728729510976,8.56502,146.45,146.39,8.44]
[1728729511176,8.44,146.43,146.38,3.4165]
[1728729511372,8.44,146.43,146.38,11.8565]
[1728729512477,3.4157,146.42,146.38,11.8565]
[1728729513284,3.4154,146.43,146.39,11.8561]
[1728729513478,8.44,146.43,146.38,1.4168]
[1728729513674,8.44,146.43,146.38,9.8568]
[1728729514380,8.44,146.43,146.38,13.2733]
[1728729514776,8.44,146.42,146.38,1.4168]
[1728729514975,3.4161,146.4,146.37,1.4236]
[1728729516377,3.416,146.41,146.37,4.8403]
[1728729516685,3.416,146.41,146.37,13.2803]
[1728729516871,0.12502,146.45,146.37,13.2803]
[1728729517076,8.44,146.41,146.37,11.8567]
[1728729517380,0.12502,146.45,146.37,11.8567]
[1728729517581,8.44,146.42,146.38,8.44]
[1728729517782,3.416,146.41,146.38,8.44]
[1728729518885,0.12502,146.45,146.39,8.44]
[1728729519084,8.44,146.44,146.39,8.44]
[1728729519289,8.44,146.43,146.38,8.44]
[1728729519589,3.4158,146.42,146.38,11.8565]
[1728729521381,8.44,146.43,146.38,3.4165]
[1728729521584,3.416,146.41,146.38,8.44]
[1728729525886,3.416,146.41,146.37,4.766]
[1728729526084,3.416,146.41,146.38,8.44]
[1728729530292,3.4157,146.42,146.39,8.44]
[1728729533897,3.4157,146.42,146.4,3.47351065]
[1728729541210,0.12502,146.45,146.4,3.47351065]
[1728729541211,3.4159,146.41,146.4,3.47351065]
[1728729541507,3.4159,146.41,146.38,11.8565]
[1728729544605,3.4159,146.41,146.38,3.4165]
[1728729544999,3.4159,146.41,146.38,11.8565]
[1728729549502,3.4157,146.42,146.38,11.8565]
[1728729550103,3.4157,146.42,146.39,3.4161]
[1728729550500,3.4157,146.42,146.4,3.39731619]
[1728729551304,8.56502,146.45,146.4,3.39731619]
[1728729551506,3.4159,146.41,146.4,3.39731619]
[1728729551707,3.4159,146.41,146.38,11.8564]
[1728729555119,3.4159,146.41,146.4,8.44]
[1728729555512,3.4159,146.41,146.4,11.94162237]
[1728729558115,8.44,146.41,146.24,17.79503121]
[1728729558315,8.44,146.41,146.36,3.417]
[1728729558316,3.4164,146.39,146.36,3.417]
[1728729558622,3.4164,146.39,146.37,8.44]
[1728729559322,3.4161,146.4,146.37,11.8567]
[1728729559627,3.4161,146.4,146.37,3.4167]
[1728729559828,3.4161,146.4,146.38,8.44]
[1728729560224,3.4161,146.4,146.37,3.4168]
[1728729560425,3.4161,146.4,146.38,8.44]
[1728729569632,3.416,146.41,146.38,11.8566]
[1728729569932,8.44,146.42,146.38,8.44]
[1728729570533,3.416,146.41,146.38,8.44]
[1728729571833,3.4159,146.41,146.38,8.44]
[1728729574344,3.4159,146.41,146.39,4.93053031]
[1728729574638,3.4159,146.41,146.38,8.44]
[1728729574928,3.4159,146.41,146.39,4.9305742]
[1728729575228,3.4159,146.41,146.38,8.44]
[1728729575535,3.4159,146.41,146.39,4.93232349]
[1728729575729,3.4159,146.41,146.4,4.93232349]
[1728729576429,3.4159,146.41,146.4,4.93281851]
[1728729576635,3.4159,146.41,146.4,4.93282536]
[1728729579938,3.4159,146.41,146.4,4.93344927]
[1728729583737,3.4159,146.41,146.38,11.8564]
[1728729584038,3.4159,146.41,146.39,4.93368407]
[1728729584238,3.4159,146.41,146.4,4.93368407]
[1728729586938,3.4159,146.41,146.38,11.8564]
[1728729587138,3.4159,146.41,146.39,4.93202581]
[1728729587331,3.4159,146.41,146.4,4.93202581]
[1728729590334,3.4159,146.41,146.4,4.93281941]
[1728729592143,3.4159,146.41,146.36,8.44]
[1728729592144,8.44,146.41,146.36,8.44]
[1728729592345,3.4165,146.39,146.37,4.93402007]
[1728729592541,3.4165,146.39,146.38,4.93402007]
[1728729593943,3.4165,146.39,146.36,11.857]
[1728729594146,3.4165,146.39,146.38,4.93326995]
[1728729595450,8.44,146.42,146.38,4.93326995]
[1728729595650,8.44,146.42,146.39,4.93326995]
[1728729595848,8.44,146.42,146.4,4.93326995]
[1728729596051,3.4161,146.41,146.38,8.44]
[1728729596249,3.4161,146.41,146.39,4.93211462]
[1728729596456,91.01933542,146.44,146.4,4.93211462]
[1728729596650,3.4158,146.42,146.38,11.8565]
[1728729596858,8.44,146.43,146.39,4.93177342]
[1728729597156,8.44,146.43,146.4,4.93177342]
[1728729597348,3.4158,146.42,146.38,11.8565]
[1728729597553,8.44,146.43,146.38,11.8565]
[1728729597754,8.44,146.43,146.39,4.93182854]
[1728729597951,8.44,146.43,146.4,4.93182854]
[1728729598151,8.44,146.43,146.38,11.8565]
[1728729598358,3.4159,146.41,146.39,4.93187957]
[1728729598652,3.4159,146.41,146.4,4.93187957]
[1728729600760,3.4159,146.41,146.38,11.8565]
[1728729600954,3.4159,146.41,146.4,4.93178812]
[1728729602253,3.4157,146.42,146.4,4.93178812]
[1728729602451,3.4157,146.42,146.39,11.8563]
[1728729602643,3.4157,146.42,146.4,4.92970153]
[1728729602850,3.4157,146.42,146.39,11.8563]
[1728729603253,3.4157,146.42,146.4,4.92957521]
[1728729603449,3.4157,146.42,146.41,4.92957521]
[1728729604058,3.4156,146.43,146.41,13.36957521]
[1728729604261,8.56502,146.45,146.41,8.44]
[1728729604756,0.12502,146.45,146.41,8.44]
[1728729604958,3.54002,146.45,146.42,8.44]
[1728729605461,0.12502,146.45,146.43,13.36556328]
[1728729605655,0.12502,146.45,146.43,8.44]
[1728729606061,0.12502,146.45,146.44,4.92483221]
[1728729606364,0.12502,146.45,146.43,8.44]
[1728729606560,3.54002,146.45,146.42,11.8555]
[1728729606762,3.54002,146.45,146.43,4.92281986]
[1728729606964,3.54002,146.45,146.42,8.44]
[1728729607264,3.54002,146.45,146.43,4.92275458]
[1728729607462,3.54002,146.45,146.42,8.44]
[1728729607662,3.54002,146.45,146.43,4.92190579]
[1728729607862,3.54002,146.45,146.42,8.44]
[1728729608265,3.4152,146.44,146.41,4.724]
[1728729608467,8.44,146.44,146.42,4.92167697]
[1728729608660,8.44,146.44,146.39,9.8491]
[1728729608961,3.4156,146.43,146.4,8.26611331]
[1728729609265,3.4156,146.43,146.41,4.92301261]
[1728729609468,3.4156,146.43,146.4,8.44]
[1728729609667,3.4156,146.43,146.41,4.92281644]
[1728729609865,3.4156,146.43,146.4,8.44]
[1728729610173,8.56502,146.45,146.41,4.92262856]
[1728729610367,3.4156,146.42,146.4,8.44]
[1728729610670,3.4156,146.42,146.39,9.8491]
[1728729610865,3.4156,146.42,146.4,4.9230357]
[1728729611070,0.12502,146.45,146.4,8.44]
[1728729611263,8.56502,146.45,146.41,4.92237956]
[1728729611571,8.44,146.44,146.39,9.8491]
[1728729611768,3.4156,146.43,146.4,8.33869414]
[1728729612067,3.4156,146.43,146.41,4.92269414]
[1728729612263,3.4156,146.43,146.39,13.2653]
[1728729612470,3.4156,146.43,146.4,4.92261832]
[1728729612668,3.4156,146.43,146.41,4.92261832]
[1728729612858,3.4156,146.43,146.39,13.2653]
[1728729613061,3.4159,146.41,146.4,4.92243011]
[1728729613258,8.44,146.44,146.4,4.92243011]
[1728729613569,8.44,146.44,146.41,4.92249863]
[1728729613772,8.44,146.44,146.39,1.4091]
[1728729613963,8.44,146.44,146.4,4.9225182]
[1728729614159,8.44,146.44,146.41,4.9225182]
[1728729614466,3.4157,146.42,146.39,4.8254]
[1728729614770,3.4157,146.42,146.4,4.92247157]
[1728729614966,3.4157,146.42,146.41,4.92247157]
[1728729615169,3.4157,146.42,146.39,4.8254]
[1728729615470,3.4157,146.42,146.4,4.92248366]
[1728729615668,3.4157,146.42,146.41,4.92248366]
[1728729615963,0.12502,146.45,146.41,4.92248366]
[1728729616164,0.12502,146.45,146.39,4.8254]
[1728729616165,3.4155,146.43,146.4,3.4161]
[1728729616366,3.4155,146.43,146.41,4.92149397]
[1728729616670,3.4155,146.43,146.41,3.43135696]
[1728729617070,3.4156,146.42,146.39,6.2082]
[1728729617371,3.4156,146.42,146.4,4.92190181]
[1728729617570,3.4156,146.42,146.41,4.92190181]
[1728729617770,3.4156,146.42,146.41,8.41508664]
[1728729617974,3.4156,146.42,146.41,4.92190181]
[1728729618173,3.4156,146.42,146.39,14.6482]
[1728729618470,3.4156,146.42,146.4,4.9218034]
[1728729618670,3.4156,146.42,146.41,4.9218034]
[1728729618871,3.4156,146.42,146.41,8.421137]
[1728729620666,3.4156,146.42,146.41,4.9218034]
[1728729620862,0.12502,146.45,146.43,3.4152]
[1728729621071,0.12502,146.45,146.44,13.3618034]
[1728729621870,0.12502,146.45,146.44,8.44]
[1728729622172,0.12502,146.45,146.44,13.35597185]
[1728729623176,3.53992,146.45,146.44,4.91597185]
[1728729623377,3.53992,146.45,146.43,3.34720937]
[1728729623671,8.56502,146.45,146.39,2.7919]
[1728729623873,3.4154,146.44,146.4,16.7710887]
[1728729624066,3.4154,146.44,146.41,4.9150887]
[1728729624264,3.4154,146.44,146.42,4.9150887]
[1728729624476,3.4154,146.44,146.4,11.856]
[1728729624680,3.4154,146.44,146.41,4.91532035]
[1728729624878,3.4154,146.44,146.42,4.91532035]
[1728729625171,3.4154,146.44,146.4,11.856]
[1728729625374,3.4154,146.44,146.41,4.9153886]
[1728729625672,3.4156,146.43,146.4,8.44]
[1728729625877,3.4156,146.43,146.41,4.91528191]
[1728729626076,11.8556,146.43,146.42,4.91528191]
[1728729626280,3.4158,146.42,146.39,6.26651125]
[1728729626479,3.4158,146.42,146.4,4.91588544]
[1728729626677,3.4158,146.42,146.41,4.91588544]
[1728729626973,3.4158,146.42,146.39,6.26651125]
[1728729627179,3.4158,146.42,146.4,4.91594079]
[1728729627375,3.4158,146.42,146.39,6.26651125]
[1728729627570,0.12502,146.45,146.41,8.44]
[1728729627779,0.12502,146.45,146.43,11.8554]
[1728729627975,0.12502,146.45,146.44,4.91331547]
[1728729628172,0.12502,146.45,146.43,11.8554]
[1728729628577,0.12502,146.45,146.44,4.91189513]
[1728729628778,0.12502,146.45,146.44,8.32709513]
[1728729630076,0.12502,146.45,146.44,4.91189513]
[1728729630383,0.12502,146.45,146.4,8.44]
[1728729630384,8.56502,146.45,146.4,8.44]
[1728729630784,3.54002,146.45,146.41,13.35095358]
[1728729630982,3.54002,146.45,146.42,4.91095358]
[1728729631184,3.54002,146.45,146.41,8.44]
[1728729631481,3.54002,146.45,146.42,4.91074123]
[1728729631686,3.54002,146.45,146.41,3.4158]
[1728729631883,3.54002,146.45,146.42,4.91136691]
[1728729632182,3.54002,146.45,146.41,3.4158]
[1728729632183,8.44,146.44,146.41,3.4158]
[1728729632386,0.12502,146.45,146.42,11.8555]
[1728729634199,0.12502,146.45,146.43,11.8554]
[1728729635276,0.12502,146.45,146.43,3.4154]
[1728729636283,0.12502,146.45,146.39,68.32608564]
[1728729636482,8.44,146.44,146.41,3.4158]
[1728729636983,8.44,146.44,146.42,4.90964813]
[1728729637184,8.44,146.44,146.41,3.4158]
[1728729638479,11.8552,146.44,146.41,3.4158]
[1728729639285,3.4154,146.43,146.4,3.416]
[1728729639484,3.4154,146.43,146.41,4.91045281]
[1728729639679,3.4154,146.43,146.39,14.70651125]
[1728729639680,3.4154,146.43,146.39,6.26651125]
[1728729639886,3.4154,146.43,146.4,16.76680348]
[1728729640088,3.4154,146.43,146.4,11.8561]
[1728729640288,11.8552,146.44,146.41,4.91070348]
[1728729640590,0.12502,146.45,146.43,3.4153]
[1728729640790,0.12502,146.45,146.41,8.44]
[1728729641590,0.12502,146.45,146.42,8.32469121]
[1728729641779,0.12502,146.45,146.42,3.4154]
[1728729643183,8.56502,146.45,146.39,6.26651125]
[1728729643389,3.4154,146.44,146.4,16.76539257]
[1728729643588,3.4154,146.44,146.41,4.90929257]
[1728729644083,3.4154,146.44,146.4,11.8561]
[1728729644279,3.4154,146.44,146.41,4.91008238]
[1728729644484,3.4154,146.44,146.4,11.8561]
[1728729644689,3.4154,146.44,146.41,4.9103544]
[1728729644888,3.4154,146.44,146.4,11.8561]
[1728729645186,3.4154,146.44,146.41,4.91035467]
[1728729645379,3.4154,146.43,146.39,6.26651125]
[1728729645588,3.4154,146.43,146.4,4.91052519]
[1728729645786,3.4154,146.43,146.41,4.91052519]
[1728729645987,3.4154,146.43,146.39,18.12271125]
[1728729646185,3.4157,146.42,146.4,4.91074318]
[1728729646492,8.44,146.43,146.39,1.3828]
[1728729646690,8.44,146.43,146.4,4.9117219]
[1728729646893,8.44,146.43,146.39,1.3828]
[1728729647395,3.4157,146.42,146.39,4.7991]
[1728729648689,0.12502,146.45,146.39,1.3828]
[1728729648995,3.4155,146.43,146.4,4.911906]
[1728729649294,3.4155,146.43,146.39,9.8228]
[1728729649488,3.4155,146.43,146.4,4.91204925]
[1728729649687,3.4155,146.43,146.39,9.8228]
[1728729649889,3.4155,146.43,146.4,4.9118539]
[1728729650086,3.4155,146.43,146.39,9.8228]
[1728729650386,3.4155,146.43,146.4,8.32800322]
[1728729650586,3.4155,146.43,146.4,3.416]
[1728729651490,3.4157,146.42,146.39,13.2391]
[1728729651691,8.44,146.44,146.4,4.91250728]
[1728729651893,8.44,146.44,146.39,13.2391]
[1728729652200,8.44,146.44,146.4,4.91220016]
[1728729652404,3.4155,146.43,146.39,13.2391]
[1728729652590,3.4155,146.43,146.4,4.91278362]
[1728729652786,3.4155,146.43,146.39,13.2391]
[1728729652991,3.4155,146.43,146.4,4.91276288]
[1728729653198,3.4155,146.43,146.39,13.2391]
[1728729653399,3.4157,146.42,146.4,4.91291329]
[1728729653698,3.4157,146.42,146.39,9.8228]
[1728729653896,3.4157,146.42,146.4,4.91299879]
[1728729654096,3.4157,146.42,146.39,9.8228]
[1728729654296,3.4157,146.42,146.4,4.91314733]
[1728729654499,3.4155,146.43,146.39,13.2391]
[1728729654693,3.4155,146.43,146.4,4.91324214]
[1728729654901,3.4155,146.43,146.39,9.8228]
[1728729655101,3.4155,146.43,146.4,4.9127491]
[1728729655300,3.4155,146.43,146.39,8.44]
[1728729655503,3.4155,146.43,146.4,8.32909801]
[1728729655701,3.4155,146.43,146.4,3.4161]
[1728729656496,3.4157,146.42,146.39,3.4163]
[1728729656694,11.8557,146.42,146.4,4.91355968]
[1728729656897,11.8557,146.42,146.39,3.4163]
[1728729657100,8.44,146.42,146.4,4.91382412]
[1728729657298,8.44,146.41,146.35,1.4197]
[1728729657600,8.44,146.4,146.36,4.91475694]
[1728729657800,3.4165,146.39,146.37,4.91475694]
[1728729657999,8.44,146.4,146.38,4.91475694]
[1728729658294,8.44,146.4,146.36,3.417]
[1728729658503,8.44,146.4,146.37,4.91651409]
[1728729658701,8.44,146.4,146.36,3.417]
[1728729658905,0.12502,146.45,146.37,4.91684163]
[1728729659097,0.12502,146.45,146.38,4.91599778]
[1728729659098,8.44,146.4,146.38,4.91599778]
[1728729659295,8.44,146.4,146.37,3.4168]
[1728729659296,3.4155,146.43,146.39,8.44]
[1728729659515,3.4155,146.43,146.4,4.91389674]
[1728729659704,3.4155,146.43,146.39,11.8562]
[1728729660005,3.4155,146.43,146.4,4.91414094]
[1728729660206,3.4155,146.43,146.4,3.416]
[1728729660407,8.44,146.44,146.4,3.416]
[1728729660602,0.12502,146.45,146.39,8.44]
[1728729660811,0.12502,146.45,146.4,4.91322547]
[1728729660812,8.44,146.44,146.4,4.91322547]
[1728729661106,8.44,146.44,146.41,4.91322547]
[1728729661411,11.8552,146.44,146.41,3.4157]
[1728729661709,11.8552,146.44,146.39,8.44]
[1728729661909,11.8552,146.44,146.4,4.91414087]
[1728729662207,11.8552,146.44,146.41,4.91414087]
[1728729662407,3.4154,146.43,146.4,3.416]
[1728729662604,3.4154,146.43,146.41,4.91473994]
[1728729662805,3.4154,146.43,146.4,3.416]
[1728729663005,3.4154,146.43,146.41,4.91482858]
[1728729663202,3.4154,146.43,146.4,3.416]
[1728729663510,11.8553,146.44,146.41,4.91468723]
[1728729663809,11.8553,146.44,146.4,3.416]
[1728729664111,11.8553,146.44,146.41,4.91493355]
[1728729664407,11.8553,146.44,146.4,3.416]
[1728729664608,11.8553,146.44,146.41,4.91555362]
[1728729664803,11.8553,146.44,146.4,3.416]
[1728729664998,11.8553,146.44,146.41,4.91555362]
[1728729665411,11.8553,146.44,146.4,3.416]
[1728729665706,11.8553,146.44,146.41,4.91585892]
[1728729666006,11.8553,146.44,146.4,8.44]
[1728729666207,11.8553,146.44,146.41,8.33176044]
[1728729666509,3.4153,146.44,146.42,4.91586044]
[1728729666709,3.4153,146.44,146.41,3.4159]
[1728729666901,3.4153,146.44,146.42,4.91602506]
[1728729667106,3.4153,146.44,146.41,3.4159]
[1728729667307,3.4153,146.44,146.42,4.91627715]
[1728729667508,3.4153,146.44,146.41,3.4159]
[1728729667707,3.4153,146.44,146.42,4.91637893]
[1728729667904,11.8553,146.44,146.41,3.4159]
[1728729668410,3.4155,146.43,146.42,4.91705793]
[1728729669609,3.4155,146.43,146.4,3.416]
[1728729669910,3.4155,146.43,146.41,4.91717372]
[1728729670111,3.4155,146.43,146.42,4.91717372]
[1728729671613,11.8555,146.43,146.42,4.91717372]
[1728729671906,8.44,146.43,146.38,11.92809947]
[1728729672108,3.4159,146.41,146.39,4.91861284]
[1728729672412,3.4159,146.41,146.4,4.91861284]
[1728729674011,8.44,146.42,146.37,3.4166]
[1728729674012,3.4161,146.4,146.37,3.4166]
[1728729674213,3.4161,146.4,146.38,4.92104146]
[1728729674416,3.4161,146.4,146.39,4.92104146]
[1728729677916,3.4161,146.4,146.37,3.4166]
[1728729678119,3.4165,146.39,146.36,3.417]
[1728729678324,3.4165,146.39,146.37,4.91992837]
[1728729678523,3.4165,146.39,146.38,4.91992837]
[1728729680325,11.8562,146.4,146.38,4.91992837]
[1728729680527,11.8562,146.4,146.39,4.91992837]
[1728729681923,11.8562,146.4,146.36,11.857]
[1728729682118,11.8562,146.4,146.39,4.91926143]
[1728729687919,11.8562,146.4,146.36,11.857]
[1728729687920,11.8562,146.4,146.37,3.4168]
[1728729688124,11.8562,146.4,146.38,4.91917843]
[1728729688331,11.8562,146.4,146.37,3.4168]
[1728729688533,11.8562,146.4,146.38,4.9185371]
[1728729688730,3.4162,146.4,146.37,3.4168]
[1728729689031,3.4162,146.4,146.38,4.91831879]
[1728729689219,3.4162,146.4,146.37,3.4168]
[1728729689624,3.4162,146.4,146.38,4.91773339]
[1728729689823,3.4162,146.4,146.37,3.4168]
[1728729690239,3.4162,146.4,146.38,4.91825084]
[1728729690431,3.4162,146.4,146.37,3.4168]
[1728729690636,3.4162,146.4,146.38,4.91825207]
[1728729690842,3.4162,146.4,146.37,3.4168]
[1728729691043,3.4162,146.4,146.38,4.91819697]
[1728729691244,3.4162,146.4,146.37,3.4168]
[1728729691439,3.4162,146.4,146.38,4.91840174]
[1728729691640,3.4162,146.4,146.37,3.4168]
[1728729691840,3.4162,146.4,146.38,4.91840174]
[1728729692040,3.4162,146.4,146.37,3.4168]
[1728729692243,3.4162,146.4,146.38,4.91860929]
[1728729692439,3.4162,146.4,146.37,3.4168]
[1728729692741,3.4162,146.4,146.38,4.91851712]
[1728729693047,3.4162,146.4,146.37,3.4168]
[1728729693249,3.4162,146.4,146.38,4.91879997]
[1728729693445,3.4162,146.4,146.39,4.91810033]
[1728729693750,3.4162,146.4,146.37,3.4168]
[1728729693947,3.4162,146.4,146.38,4.91760884]
[1728729694141,3.4162,146.4,146.37,3.4168]
[1728729694351,3.4162,146.4,146.38,4.91778854]
[1728729694547,11.8559,146.41,146.39,4.91743774]
[1728729694747,11.8559,146.41,146.38,3.4165]
[1728729694947,11.8559,146.41,146.39,4.91775605]
[1728729695142,11.8559,146.41,146.38,3.4165]
[1728729695349,11.8559,146.41,146.39,4.91767041]
[1728729695548,11.8559,146.41,146.38,3.4165]
[1728729695750,3.4161,146.4,146.37,3.4168]
[1728729695951,3.4161,146.4,146.38,4.9180165]
[1728729696144,11.8561,146.4,146.37,3.4168]
[1728729696346,3.4163,146.39,146.38,4.91787561]
[1728729697243,8.44,146.4,146.33,0.12502]
[1728729697448,8.44,146.36,146.33,0.12502]
[1728729697651,8.44,146.34,146.33,0.12502]
[1728729697950,8.44,146.34,146.33,5.04633823]
[1728729699353,11.8575,146.34,146.33,5.04633823]
[1728729700346,11.8575,146.34,146.33,0.12502]
[1728729700942,11.8575,146.34,146.33,5.04492853]
[1728729701453,8.44,146.34,146.33,0.12502]
[1728729709856,0.658,146.43,146.33,0.12502]
[1728729710055,8.44,146.36,146.33,3.54252]
[1728729712562,8.44,146.36,146.33,0.12502]
[1728729712861,8.44,146.36,146.34,3.4173]
[1728729713855,3.417,146.37,146.34,3.4173]
[1728729714056,8.44,146.36,146.34,3.4173]
[1728729717558,11.857,146.36,146.33,3.54272]
[1728729718862,8.44,146.35,146.33,3.54272]
[1728729721064,11.8574,146.35,146.33,0.12502]
[1728729721661,8.44,146.34,146.33,0.12502]
[1728729721865,8.44,146.34,146.33,5.03614795]
[1728729722563,11.8575,146.34,146.33,0.12502]
[1728729722866,0.658,146.43,146.33,0.12502]
[1728729723067,8.44,146.36,146.33,3.54262]
[1728729723563,8.44,146.36,146.34,3.4174]
[1728729724362,8.44,146.36,146.33,3.54262]
[1728729725368,11.857,146.36,146.33,3.54262]
[1728729725760,0.658,146.43,146.34,3.4174]
[1728729726069,8.44,146.37,146.33,0.12502]
[1728729726465,8.44,146.37,146.34,3.4173]
[1728729727965,0.658,146.43,146.33,8.56502]
[1728729728166,8.44,146.4,146.37,3.4167]
[1728729728767,3.416,146.41,146.38,3.4165]
[1728729728967,3.416,146.41,146.35,8.44]
[1728729728968,8.44,146.41,146.36,8.28161901]
[1728729729164,8.44,146.41,146.35,8.44]
[1728729729165,8.44,146.41,146.37,4.90711912]
[1728729729472,8.44,146.41,146.38,3.4164]
[1728729730366,8.44,146.41,146.37,11.93325758]
[1728729730569,8.44,146.42,146.39,3.4162]
[1728729731374,8.44,146.42,146.37,11.94026419]
[1728729731566,11.8557,146.42,146.38,8.32387527]
[1728729731767,11.8557,146.42,146.38,3.4165]
[1728729731964,8.44,146.41,146.38,3.4165]
[1728729732276,11.8559,146.41,146.37,6.91686419]
[1728729732573,11.8559,146.41,146.37,3.4166]
[1728729732774,11.8559,146.41,146.37,6.83589175]
[1728729732962,11.8559,146.41,146.37,3.4166]
[1728729733168,11.8559,146.41,146.38,3.4166]
[1728729733477,8.44,146.41,146.38,3.4166]
[1728729736581,8.44,146.41,146.37,11.85256717]
[1728729736878,8.44,146.41,146.39,3.4163]
[1728729737965,8.44,146.41,146.38,3.4165]
[1728729738876,8.44,146.41,146.37,11.85256717]
[1728729739178,8.44,146.41,146.39,3.4162]
[1728729739576,0.12502,146.45,146.4,3.416]